bitfinex/quotes_ETHUSD_20230117
["timestamp","ask_amount","ask_price","bid_price","bid_amount"]
[1673924387137,2.6838034,1563.6,1563.5,0.42216534]
[1673924389188,9.0792934,1563.6,1563.5,0.42216534]
[1673924389415,9.1482934,1563.6,1563.5,0.42216534]
[1673924389641,11.51086267,1563.6,1563.5,0.42216534]
[1673924390336,25.77784267,1563.6,1563.5,0.42216534]
[1673924390605,26.25774267,1563.6,1563.5,0.42216534]
[1673924391422,1.0,1563.5,1563.0,0.37877722]
[1673924391630,1.0,1563.5,1563.0,3.49540129]
[1673924391631,1.474,1563.3,1563.0,3.49540129]
[1673924391843,1.0,1563.2,1563.0,3.49540129]
[1673924393015,2.476,1563.2,1563.0,3.49540129]
[1673924393232,2.476,1563.2,1563.0,0.37877722]
[1673924396214,1.476,1563.2,1563.1,4.75172854]
[1673924396376,1.476,1563.2,1563.0,0.44477722]
[1673924396585,1.476,1563.2,1563.0,0.37877722]
[1673924398161,2.476,1563.2,1563.0,0.37877722]
[1673924398619,1.476,1563.2,1563.0,0.37877722]
[1673924398937,2.476,1563.2,1563.0,0.37877722]
[1673924399776,1.473,1563.1,1563.0,0.37877722]
[1673924399999,2.9531,1563.1,1563.0,0.37877722]
[1673924401088,1.9531,1563.1,1563.0,0.37877722]
[1673924401317,0.4801,1563.1,1563.0,3.49540129]
[1673924401546,0.48,1563.2,1563.0,3.49540129]
[1673924402661,0.48,1563.2,1563.1,3.11662407]
[1673924402887,2.543,1563.4,1563.1,3.11662407]
[1673924403128,1.474,1563.4,1563.1,3.11662407]
[1673924403504,2.954,1563.4,1563.1,3.11662407]
[1673924403714,9.35035,1563.4,1563.1,3.11662407]
[1673924403981,13.00848612,1563.4,1563.1,3.11662407]
[1673924404561,20.35627905,1563.4,1563.0,0.44477722]
[1673924404774,1.0,1563.3,1563.0,0.37877722]
[1673924405017,6.39713,1563.2,1563.0,0.37877722]
[1673924405231,0.069,1563.2,1563.0,0.37877722]
[1673924405427,7.46597,1563.3,1563.0,0.37877722]
[1673924405636,10.24153091,1563.3,1563.0,0.3754194]
[1673924405864,9.24153091,1563.3,1563.0,0.3754194]
[1673924406884,9.24153091,1563.3,1563.0,3.49204347]
[1673924406885,0.069,1563.3,1563.0,3.49204347]
[1673924407234,22.16621293,1563.4,1563.0,3.49204347]
[1673924408931,20.69021293,1563.4,1563.0,3.49204347]
[1673924411508,1.95144293,1563.3,1563.0,3.49204347]
[1673924411953,0.95144293,1563.3,1563.0,3.49204347]
[1673924412324,22.11747118,1563.4,1563.0,3.49204347]
[1673924412778,0.95144293,1563.3,1563.0,3.49204347]
[1673924413324,0.95444293,1563.3,1563.0,3.49204347]
[1673924413522,0.95144293,1563.3,1563.0,3.49204347]
[1673924414438,0.95144293,1563.2,1563.0,0.3754194]
[1673924414655,7.34861293,1563.2,1563.0,0.3754194]
[1673924414854,7.41761293,1563.2,1563.0,0.3754194]
[1673924416778,2.42744293,1563.1,1563.0,0.3754194]
[1673924416968,13.5944464,1563.1,1563.0,0.3754194]
[1673924417163,20.0609864,1563.1,1563.0,0.3754194]
[1673924418568,19.0609864,1563.1,1563.0,0.3754194]
[1673924418775,17.5849864,1563.1,1563.0,0.3754194]
[1673924419369,25.386198,1563.1,1563.0,0.3754194]
[1673924419627,18.10654347,1563.1,1563.0,0.3754194]
[1673924420456,20.00955447,1563.1,1563.0,0.3754194]
[1673924421201,11.23785588,1563.1,1563.0,0.3754194]
[1673924423514,2.0221,1563.1,1563.0,0.3754194]
[1673924423675,0.95611066,1563.1,1563.0,0.3451351]
[1673924426204,0.95911066,1563.1,1563.0,0.3451351]
[1673924426410,0.95611066,1563.1,1563.0,0.3451351]
[1673924426568,3.38336891,1563.1,1563.0,0.3451351]
[1673924426777,0.95611066,1563.1,1563.0,0.3451351]
[1673924427238,2.38336891,1563.1,1563.0,0.3451351]
[1673924427661,0.95611066,1563.1,1563.0,0.3451351]
[1673924427831,0.95611066,1563.1,1563.0,4.18485009]
[1673924428254,0.95611066,1563.1,1563.0,10.58280009]
[1673924428518,2.38336891,1563.2,1563.0,13.64280009]
[1673924428896,0.95611066,1563.2,1563.0,13.64280009]
[1673924429301,2.38336891,1563.2,1563.0,13.64280009]
[1673924429553,2.38336891,1563.2,1563.1,1.36428001]
[1673924431454,2.38336891,1563.2,1563.0,13.30366499]
[1673924431455,1.42725825,1563.2,1563.0,13.30366499]
[1673924431668,0.95832384,1563.1,1563.0,3.06]
[1673924431983,0.95832384,1563.1,1562.9,3.066]
[1673924432190,0.95832384,1563.1,1562.9,6.11662407]
[1673924432404,0.95832384,1563.1,1562.9,6.17662407]
[1673924432565,0.95832384,1563.1,1562.9,8.71448348]
[1673924433236,2.38558209,1563.1,1562.9,5.59785941]
[1673924433458,0.95832384,1563.1,1562.9,3.06]
[1673924433673,0.95832384,1563.1,1562.8,3.066]
[1673924433986,0.95832384,1563.1,1562.8,12.51530407]
[1673924434136,0.95832384,1563.1,1562.8,12.57530407]
[1673924434840,2.38558209,1563.1,1562.8,12.57530407]
[1673924435033,2.38558209,1563.1,1562.9,1.25753041]
[1673924435399,0.95832384,1563.1,1562.9,1.25753041]
[1673924437037,2.38558209,1563.1,1562.9,1.25753041]
[1673924437190,0.95832384,1563.1,1562.9,1.25753041]
[1673924437400,2.38558209,1563.1,1562.9,1.25753041]
[1673924437665,0.95832384,1563.1,1562.9,1.25753041]
[1673924438138,2.38558209,1563.1,1563.0,1.18175304]
[1673924438504,0.95832384,1563.1,1563.0,7.57970304]
[1673924438719,2.38558209,1563.2,1563.0,10.75632711]
[1673924439085,0.95832384,1563.2,1563.0,10.75632711]
[1673924439935,0.95832384,1563.1,1563.0,0.06]
[1673924440158,0.95832384,1563.1,1562.8,15.86295]
[1673924440393,0.95832384,1563.1,1562.9,3.11662407]
[1673924441155,0.95832384,1563.1,1562.9,9.51496407]
[1673924441305,0.95832384,1563.1,1562.9,12.35088601]
[1673924441497,0.95832384,1563.1,1563.0,3.11662407]
[1673924441709,3.448011,1563.3,1563.0,3.11662407]
[1673924441710,2.45458209,1563.3,1563.1,0.95832384]
[1673924442029,2.38558209,1563.3,1563.1,10.47244791]
[1673924442282,2.38558209,1563.3,1563.1,12.8658827]
[1673924442495,0.95832384,1563.3,1563.1,12.8658827]
[1673924442824,0.95832384,1563.3,1563.1,6.4683827]
[1673924443133,0.95832384,1563.3,1563.1,4.13494791]
[1673924443277,0.95832384,1563.3,1563.1,4.07494791]
[1673924443486,0.95832384,1563.3,1563.2,3.11662407]
[1673924445760,0.95832384,1563.3,1563.1,1.02432384]
[1673924446087,2.38558209,1563.3,1563.1,4.07494791]
[1673924446658,2.9213414,1563.3,1563.1,0.95832384]
[1673924446869,0.95832384,1563.2,1563.1,0.95832384]
[1673924448568,1.42725825,1563.2,1563.1,0.95832384]
[1673924449180,8.70632375,1563.2,1563.1,0.95832384]
[1673924449448,8.77532375,1563.2,1563.1,0.95832384]
[1673924449651,9.56448453,1563.2,1563.1,0.95832384]
[1673924449874,9.56448453,1563.2,1563.1,0.95490096]
[1673924449875,27.17208135,1563.2,1563.1,0.95490096]
[1673924450343,25.26907035,1563.2,1563.1,0.95490096]
[1673924450764,27.18492454,1563.2,1563.1,0.95490096]
[1673924451237,33.58205454,1563.2,1563.1,0.95490096]
[1673924451456,20.78779454,1563.2,1563.1,0.95490096]
[1673924451684,11.9699076,1563.2,1563.1,0.95490096]
[1673924451818,24.76416722,1563.2,1563.1,0.95490096]
[1673924452028,23.32734047,1563.2,1563.1,0.95490096]
[1673924452661,24.80134047,1563.2,1563.1,0.95490096]
[1673924452874,31.19847047,1563.2,1563.1,0.95490096]
[1673924453557,33.59505454,1563.2,1563.1,0.95490096]
[1673924453772,31.67920035,1563.2,1563.1,0.95490096]
[1673924454452,25.34335226,1563.2,1563.1,0.95490096]
[1673924454670,32.63534133,1563.2,1563.1,0.95490096]
[1673924454871,33.59513492,1563.2,1563.1,0.95490096]
[1673924456131,31.67928323,1563.2,1563.1,0.95490096]
[1673924456343,33.14828323,1563.2,1563.1,0.00090096]
[1673924456608,44.43318356,1563.2,1563.1,0.00090096]
[1673924456829,41.55169916,1563.2,1563.1,0.00090096]
[1673924457287,49.75899916,1563.2,1563.1,0.00090096]
[1673924458150,52.64048356,1563.2,1563.1,0.00090096]
[1673924458364,56.40344681,1563.2,1563.1,0.00090096]
[1673924458569,59.40344681,1563.2,1563.1,0.00090096]
[1673924465832,71.50958872,1563.2,1563.1,0.00090096]
[1673924466176,67.5900821,1563.2,1563.1,0.00090096]
[1673924466480,70.94007297,1563.2,1563.1,0.00090096]
[1673924467433,70.29373379,1563.2,1563.1,0.00090096]
[1673924467629,70.94007297,1563.2,1563.1,0.00090096]
[1673924468832,67.5900821,1563.2,1563.1,0.00090096]
[1673924469323,59.52396241,1563.2,1563.1,0.00090096]
[1673924469641,67.59042923,1563.2,1563.1,0.00090096]
[1673924469863,56.52396241,1563.2,1563.1,0.00090096]
[1673924470161,64.59041834,1563.2,1563.1,0.00090096]
[1673924470325,67.59042386,1563.2,1563.1,0.00090096]
[1673924470534,59.52396241,1563.2,1563.1,0.00090096]
[1673924470741,67.59045511,1563.2,1563.1,0.00090096]
[1673924470958,74.34745511,1563.2,1563.1,0.00090096]
[1673924473373,66.28096241,1563.2,1563.1,0.00090096]
[1673924474018,63.28096241,1563.2,1563.1,0.00090096]
[1673924475716,66.14760916,1563.2,1563.1,0.00090096]
[1673924477993,1.00236011,1563.1,1562.6,0.0078141]
[1673924478200,0.95546926,1562.8,1562.6,0.0078141]
[1673924478416,12.79836,1562.7,1562.6,0.0078141]
[1673924478624,23.43396,1562.7,1562.6,0.0078141]
[1673924480676,29.83314,1562.7,1562.6,0.0078141]
[1673924482648,30.78860926,1562.7,1562.6,0.0078141]
[1673924482825,34.79710558,1562.7,1562.6,0.0078141]
[1673924484107,33.84163632,1562.7,1562.6,0.0078141]
[1673924484322,34.79710558,1562.7,1562.6,0.0078141]
[1673924486769,36.23030947,1562.7,1562.6,0.0078141]
[1673924488187,34.79710558,1562.7,1562.6,0.0078141]
[1673924488620,35.27484021,1562.7,1562.6,0.0078141]
[1673924491352,37.18577874,1562.7,1562.6,0.0078141]
[1673924491712,35.27484021,1562.7,1562.6,0.0078141]
[1673924492094,41.13059436,1562.7,1562.6,0.0078141]
[1673924494847,41.60832899,1562.7,1562.6,0.0078141]
[1673924495238,43.52554941,1562.7,1562.6,0.0078141]
[1673924495615,42.5748222,1562.7,1562.6,0.0078141]
[1673924495760,41.13687625,1562.7,1562.6,0.0078141]
[1673924498701,43.52554941,1562.7,1562.6,0.0078141]
[1673924499771,41.13687625,1562.7,1562.6,0.0078141]
[1673924500076,8.38540042,1562.7,1562.6,1.18069855]
[1673924500271,8.86604336,1562.7,1562.6,1.18069855]
[1673924500910,8.86604336,1562.7,1562.6,0.00569855]
[1673924501757,7.90690177,1562.7,1562.6,0.00569855]
[1673924502114,28.00004974,1562.7,1562.6,0.00569855]
[1673924502896,31.67883703,1562.7,1562.6,0.00569855]
[1673924503107,30.24011526,1562.7,1562.6,0.00569855]
[1673924503316,30.711568,1562.7,1562.6,0.00569855]
[1673924505947,30.941568,1562.7,1562.6,0.00569855]
[1673924507884,30.711568,1562.7,1562.6,0.00569855]
[1673924511885,11.514028,1562.7,1562.6,0.00569855]
[1673924512128,20.63360071,1562.7,1562.6,0.00569855]
[1673924512420,27.03278071,1562.7,1562.6,0.00569855]
[1673924516843,27.51298071,1562.7,1562.6,0.00569855]
[1673924517642,25.12430755,1562.7,1562.6,0.00569855]
[1673924517855,28.2209543,1562.7,1562.6,0.00569855]
[1673924518092,31.83046673,1562.7,1562.6,0.00569855]
[1673924521676,34.83046673,1562.7,1562.6,0.00569855]
[1673924522284,34.83046673,1562.7,1562.6,0.00069855]
[1673924522920,34.82949332,1562.7,1562.6,0.00069855]
[1673924523091,43.07809332,1562.7,1562.6,0.00069855]
[1673924523570,51.14604061,1562.7,1562.6,0.00069855]
[1673924523739,52.87201793,1562.7,1562.6,0.00069855]
[1673924523933,52.87201793,1562.7,1562.3,0.03438911]
[1673924523934,0.00130145,1562.5,1562.3,0.03438911]
[1673924524144,21.11976043,1562.4,1562.3,0.03438911]
[1673924524358,26.56535457,1562.4,1562.3,0.03438911]
[1673924526564,28.00371077,1562.4,1562.3,0.03438911]
[1673924528029,20.70758279,1562.4,1562.3,0.03438911]
[1673924528276,23.39975457,1562.4,1562.3,0.03438911]
[1673924529117,24.3582951,1562.4,1562.3,0.03438911]
[1673924529384,23.39975457,1562.4,1562.3,0.03438911]
[1673924531445,22.91981757,1562.4,1562.3,0.03438911]
[1673924534550,24.35817377,1562.4,1562.3,0.03438911]
[1673924534757,23.39975457,1562.4,1562.3,0.03438911]
[1673924535766,30.72276278,1562.4,1562.3,0.03438911]
[1673924535937,34.20306278,1562.4,1562.3,0.03438911]
[1673924537076,34.20306278,1562.4,1562.3,0.00038911]
[1673924537338,41.02615334,1562.4,1562.3,0.00038911]
[1673924537490,45.19667235,1562.4,1562.2,0.00131556]
[1673924537697,61.06639404,1562.3,1562.2,0.00131556]
[1673924537960,61.13442063,1562.3,1562.2,0.00131556]
[1673924538176,1.0,1562.2,1561.8,0.02992645]
[1673924538366,22.6417733,1561.9,1561.8,0.02992645]
[1673924538544,26.23836971,1561.9,1561.8,0.02992645]
[1673924539021,25.27994641,1561.9,1561.8,0.02992645]
[1673924539419,27.67600466,1561.9,1561.8,0.02992645]
[1673924539632,26.46836971,1561.9,1561.8,0.02992645]
[1673924539799,23.99236971,1561.9,1561.8,0.02992645]
[1673924540013,16.40149641,1561.9,1561.8,0.02992645]
[1673924540242,13.35332659,1561.9,1561.8,0.02992645]
[1673924540472,12.87292659,1561.9,1561.8,0.02992645]
[1673924544532,0.06802659,1561.9,1561.8,0.02992645]
[1673924544744,23.79043,1562.0,1561.8,0.02992645]
[1673924544745,23.85845659,1562.0,1561.8,0.02992645]
[1673924545849,0.06802659,1562.0,1561.8,0.02992645]
[1673924546167,12.87186659,1562.1,1561.8,0.02992645]
[1673924546528,12.87186659,1562.1,1561.8,0.18051909]
[1673924548573,12.87186659,1562.1,1561.8,0.02992645]
[1673924550000,19.27378659,1562.1,1561.8,0.02992645]
[1673924551171,1.0,1562.0,1561.8,0.02992645]
[1673924551385,13.80451,1562.0,1561.8,0.02992645]
[1673924551729,13.87253659,1562.0,1561.8,0.02992645]
[1673924552309,12.87253659,1562.0,1561.8,0.02992645]
[1673924554618,14.79998225,1562.0,1561.8,0.02992645]
[1673924555491,21.20238225,1562.0,1561.8,0.02992645]
[1673924555874,1.0,1561.9,1561.8,0.02992645]
[1673924556088,12.8049,1561.9,1561.8,0.02992645]
[1673924556354,19.27537659,1561.9,1561.8,0.02992645]
[1673924556674,21.10984795,1561.9,1561.8,0.02992645]
[1673924559824,19.27537659,1561.9,1561.8,0.02992645]
[1673924560445,17.58079269,1561.9,1561.8,0.02992645]
[1673924566339,0.06802659,1561.9,1561.8,0.02992645]
[1673924566548,0.003,1561.9,1561.8,0.02992645]
[1673924566710,6.46994659,1562.1,1561.8,0.02992645]
[1673924566920,6.46994659,1562.1,1561.8,0.82704009]
[1673924567970,0.06802659,1562.1,1562.0,1.471]
[1673924568188,0.06802659,1562.2,1562.0,1.471]
[1673924568532,24.45128989,1562.3,1562.0,1.471]
[1673924568702,24.45128989,1562.3,1562.0,0.96827]
[1673924570121,25.88892484,1562.3,1562.0,0.96827]
[1673924571091,24.45128989,1562.3,1562.0,0.96827]
[1673924571402,0.06802659,1562.3,1562.2,1.476]
[1673924571619,0.9584233,1562.4,1562.2,4.59262407]
[1673924571830,0.9584233,1562.4,1562.2,5.69864248]
[1673924572143,0.9584233,1562.4,1562.3,4.59262407]
[1673924572347,1.9168466,1562.6,1562.4,1.476]
[1673924572348,1.02644989,1562.6,1562.4,1.476]
[1673924572510,0.9584233,1562.6,1562.5,4.57762407]
[1673924572716,0.9584233,1562.6,1562.5,5.18298648]
[1673924572930,0.9584233,1562.6,1562.5,5.24298648]
[1673924573385,0.9584233,1562.6,1562.5,3.78198648]
[1673924573611,0.9584233,1562.6,1562.5,3.72198648]
[1673924574606,2.39605825,1562.7,1562.5,3.72198648]
[1673924575560,0.9584233,1562.6,1562.5,3.72198648]
[1673924576558,2.39605825,1562.7,1562.5,3.72198648]
[1673924576709,0.9584233,1562.7,1562.5,3.72198648]
[1673924577407,2.39605825,1562.7,1562.5,3.72198648]
[1673924578770,0.9584233,1562.7,1562.5,3.72198648]
[1673924581079,0.9584233,1562.7,1562.6,0.37219865]
[1673924582333,0.9584233,1562.7,1562.5,3.72198648]
[1673924583472,0.9584233,1562.7,1562.4,1.542]
[1673924583685,0.9584233,1562.7,1562.3,6.40044]
[1673924583686,0.9584233,1562.6,1562.3,0.066]
[1673924583857,13.7581233,1562.6,1562.3,3.11662407]
[1673924584223,13.82614989,1562.6,1562.3,3.11662407]
[1673924586039,15.26378484,1562.6,1562.3,3.11662407]
[1673924586343,18.69099598,1562.6,1562.3,3.11662407]
[1673924586700,17.25336103,1562.6,1562.3,3.11662407]
[1673924586910,13.82614989,1562.6,1562.3,3.11662407]
[1673924587225,13.82614989,1562.6,1562.2,8.5056]
[1673924587554,15.26378484,1562.6,1562.2,11.61622407]
[1673924588400,15.74398484,1562.6,1562.2,11.61622407]
[1673924589013,7.3585433,1562.5,1562.2,11.61622407]
[1673924589240,6.4004,1562.4,1562.2,0.06]
[1673924589450,6.4004,1562.4,1562.0,25.6224]
[1673924589451,12.86882659,1562.4,1562.0,25.6224]
[1673924589663,12.86882659,1562.4,1562.1,3.11662407]
[1673924591459,6.46842659,1562.4,1562.1,3.11662407]
[1673924592395,13.82724989,1562.4,1562.1,3.11662407]
[1673924592608,15.51115152,1562.4,1562.0,17.7634]
[1673924592822,21.91155152,1562.4,1562.0,20.87602407]
[1673924593328,21.91155152,1562.4,1562.0,11.52942407]
[1673924596002,21.91155152,1562.4,1562.0,8.4128]
[1673924596211,6.40122,1562.2,1562.0,8.4128]
[1673924596428,6.46924659,1562.2,1562.0,0.062]
[1673924596741,19.27168659,1562.2,1561.8,0.09192645]
[1673924596965,19.27168659,1562.2,1561.8,3.14655052]
[1673924597339,12.80408,1562.0,1561.8,0.02992645]
[1673924597509,19.27414659,1562.0,1561.8,0.02992645]
[1673924600869,1.0,1561.9,1561.8,0.02992645]
[1673924601030,13.8049,1561.9,1561.8,0.02992645]
[1673924601240,12.87292659,1561.9,1561.8,0.02992645]
[1673924603342,6.47047659,1561.9,1561.8,0.02992645]
[1673924606125,20.92758,1562.0,1561.9,1.62654322]
[1673924606281,12.87148,1562.0,1561.9,1.62654322]
[1673924606490,0.067,1562.0,1561.9,1.62654322]
[1673924606748,17.2928,1562.1,1561.9,1.79219019]
[1673924606749,10.958,1562.1,1561.9,1.79219019]
[1673924606913,0.067,1562.1,1561.9,1.79219019]
[1673924607128,12.87003,1562.2,1561.9,1.79219019]
[1673924607963,6.46845,1562.2,1561.9,1.79219019]
[1673924611025,6.46845,1562.2,1561.9,4.90881426]
[1673924611242,0.067,1562.2,1562.0,3.6075055]
[1673924611431,17.8632133,1562.3,1562.0,3.6075055]
[1673924611640,24.2642533,1562.3,1562.0,3.6075055]
[1673924613214,24.2642533,1562.3,1562.0,0.49088143]
[1673924613420,24.2642533,1562.3,1561.9,1.79219019]
[1673924613647,24.2642533,1562.3,1561.9,4.90881426]
[1673924614432,30.6652933,1562.3,1561.9,1.62654322]
[1673924614581,0.9584233,1562.2,1561.9,1.62654322]
[1673924614794,19.20489,1562.1,1561.9,1.62654322]
[1673924615058,19.75229,1562.1,1561.9,1.62654322]
[1673924616102,20.7107133,1562.1,1561.9,1.62654322]
[1673924616348,23.02554812,1562.1,1561.9,1.62654322]
[1673924620405,6.94903,1562.1,1561.9,1.62654322]
[1673924620662,0.5474,1562.1,1561.9,1.62654322]
[1673924620873,20.7102233,1562.2,1561.9,1.62654322]
[1673924624558,22.14785825,1562.2,1561.9,1.62654322]
[1673924624717,20.7102233,1562.2,1561.9,1.62654322]
[1673924624928,22.14785825,1562.2,1561.9,1.62654322]
[1673924626553,0.9584233,1562.1,1561.9,1.62654322]
[1673924626784,7.3601033,1562.1,1561.9,1.62654322]
[1673924626923,7.4271033,1562.1,1561.9,1.62654322]
[1673924628116,6.46868,1562.1,1561.9,1.62654322]
[1673924628569,7.4271033,1562.1,1561.9,1.62654322]
[1673924628911,1.0254233,1562.1,1561.9,5.72237426]
[1673924629228,0.9584233,1562.2,1562.0,3.11662407]
[1673924630742,2.39605825,1562.2,1562.0,3.11662407]
[1673924631423,2.39293959,1562.2,1562.0,3.11662407]
[1673924634485,1.43763495,1562.2,1562.0,3.11662407]
[1673924635597,1.43763495,1562.2,1562.0,4.3357015]
[1673924635849,1.50463495,1562.3,1562.0,10.7376915]
[1673924636022,1.43763495,1562.3,1562.0,10.8016915]
[1673924637060,19.79836155,1562.4,1562.0,10.8016915]
[1673924638431,1.43763495,1562.3,1562.0,10.8016915]
[1673924638684,19.79836155,1562.4,1562.1,1.08016915]
[1673924640546,1.43763495,1562.3,1562.1,1.08016915]
[1673924641427,2.3965857,1562.3,1562.1,1.08016915]
[1673924643469,2.3965857,1562.3,1562.1,4.19679322]
[1673924643605,0.95895075,1562.3,1562.1,10.59837322]
[1673924643815,2.3965857,1562.3,1562.1,10.66237322]
[1673924644023,2.3965857,1562.3,1562.2,1.06623732]
[1673924644490,2.3965857,1562.3,1562.1,10.66437322]
[1673924644703,2.3965857,1562.3,1562.1,10.66237322]
[1673924645554,0.95895075,1562.2,1562.1,10.66237322]
[1673924647762,2.3965857,1562.3,1562.1,10.66237322]
[1673924648080,1.02595075,1562.4,1562.3,8.09492368]
[1673924648290,1.43763495,1562.5,1562.3,12.74554775]
[1673924648291,2.3965857,1562.5,1562.3,12.74554775]
[1673924649127,2.3965857,1562.5,1562.4,3.11662407]
[1673924649739,0.95895075,1562.5,1562.4,3.11662407]
[1673924649911,0.95895075,1562.5,1562.4,5.67154084]
[1673924650121,0.95895075,1562.5,1562.4,5.73554084]
[1673924650968,0.95895075,1562.6,1562.4,13.61194084]
[1673924651177,0.95895075,1562.7,1562.5,4.11662407]
[1673924651495,2.63816863,1562.8,1562.6,9.92787648]
[1673924651699,1.13353368,1562.8,1562.7,3.11662407]
[1673924652334,2.57116863,1562.8,1562.7,3.11662407]
[1673924653338,1.61221788,1562.8,1562.7,3.11662407]
[1673924653659,1.13178372,1562.8,1562.7,4.11601172]
[1673924654952,1.13178372,1562.8,1562.6,0.47766241]
[1673924655205,7.53056372,1562.8,1562.6,3.52828648]
[1673924655548,7.53056372,1562.8,1562.5,0.066]
[1673924655549,0.95720079,1562.7,1562.5,0.066]
[1673924655857,0.95720079,1562.7,1562.5,3.11662407]
[1673924656008,0.95720079,1562.7,1562.5,3.11445489]
[1673924657164,2.39483574,1562.7,1562.5,3.11445489]
[1673924657700,0.95720079,1562.7,1562.5,3.11445489]
[1673924657906,2.39483574,1562.7,1562.5,3.11445489]
[1673924658688,3.39483574,1562.7,1562.5,3.11445489]
[1673924659011,2.39483574,1562.7,1562.5,3.11445489]
[1673924661494,0.95720079,1562.6,1562.4,8.1228]
[1673924661692,0.95720079,1562.6,1562.4,11.23742407]
[1673924663000,0.95720079,1562.6,1562.4,3.18062407]
[1673924663191,0.95720079,1562.6,1562.4,3.11662407]
[1673924665943,8.79447574,1562.6,1562.4,3.11662407]
[1673924666147,11.45665363,1562.6,1562.3,1.76011368]
[1673924666371,2.46183574,1562.6,1562.3,4.81073775]
[1673924666677,2.39483574,1562.6,1562.3,4.81073775]
[1673924668514,0.95720079,1562.5,1562.3,4.81073775]
[1673924670523,0.95720079,1562.5,1562.3,1.69411368]
[1673924670774,0.95720079,1562.4,1562.3,1.69411368]
[1673924670934,16.91748436,1562.4,1562.3,1.69411368]
[1673924671135,15.02728357,1562.4,1562.3,1.69411368]
[1673924671346,2.22648357,1562.4,1562.3,1.69411368]
[1673924671611,1.50450079,1562.5,1562.3,4.81073775]
[1673924671770,1.43750079,1562.5,1562.3,4.81073775]
[1673924672912,1.95720079,1562.5,1562.3,4.81073775]
[1673924673046,2.39483574,1562.5,1562.3,4.81073775]
[1673924674044,8.79486574,1562.5,1562.3,1.69411368]
[1673924674195,11.26770697,1562.5,1562.3,1.69411368]
[1673924674410,0.95720079,1562.4,1562.3,1.69411368]
[1673924675088,2.39483574,1562.5,1562.3,1.69411368]
[1673924675626,0.95720079,1562.4,1562.3,1.69411368]
[1673924675995,2.39483574,1562.5,1562.3,1.69411368]
[1673924676455,0.95720079,1562.4,1562.3,1.69411368]
[1673924678411,0.95720079,1562.4,1562.3,1.69117093]
[1673924679365,2.02839302,1562.4,1562.3,1.69117093]
[1673924679724,8.42879302,1562.4,1562.3,1.69117093]
[1673924679930,8.49579302,1562.4,1562.3,1.69117093]
[1673924680421,7.42460079,1562.4,1562.3,1.69117093]
[1673924681076,1.02420079,1562.4,1562.3,1.69117093]
[1673924681255,0.95720079,1562.4,1562.3,1.69117093]
[1673924685471,2.39483574,1562.4,1562.3,1.69117093]
[1673924686553,8.79523574,1562.4,1562.3,1.69117093]
[1673924686767,11.22019897,1562.4,1562.3,1.69117093]
[1673924687347,10.26299818,1562.4,1562.3,1.69117093]
[1673924688343,11.22161162,1562.4,1562.3,1.69117093]
[1673924688552,4.82121162,1562.4,1562.3,1.69117093]
[1673924688880,4.75421162,1562.4,1562.3,1.69117093]
[1673924691155,23.89199968,1562.4,1562.3,1.69117093]
[1673924691385,28.92176473,1562.4,1562.3,1.69117093]
[1673924691788,31.31782298,1562.4,1562.3,1.69117093]
[1673924692607,28.92187531,1562.4,1562.3,1.69117093]
[1673924692804,24.02271568,1562.4,1562.3,1.69117093]
[1673924693263,23.06410323,1562.4,1562.3,1.69117093]
[1673924693488,16.66370323,1562.4,1562.3,1.69117093]
[1673924693691,23.95916046,1562.4,1562.3,1.69117093]
[1673924694334,22.04231386,1562.4,1562.3,1.69117093]
[1673924694520,22.04226358,1562.4,1562.3,1.69117093]
[1673924694909,23.95911018,1562.4,1562.3,1.69117093]
[1673924695910,22.52117018,1562.4,1562.3,1.69117093]
[1673924697066,22.51812036,1562.4,1562.3,1.69117093]
[1673924699047,23.9567797,1562.4,1562.3,1.69117093]
[1673924699864,22.51812036,1562.4,1562.3,1.69117093]
[1673924700301,9.71732036,1562.4,1562.3,1.69117093]
[1673924700634,7.36240695,1562.4,1562.3,1.69117093]
[1673924701630,8.80128509,1562.4,1562.3,1.69117093]
[1673924701896,7.36240695,1562.4,1562.3,1.69117093]
[1673924702901,13.76280695,1562.4,1562.3,1.69117093]
[1673924703158,20.16320695,1562.4,1562.3,1.69117093]
[1673924703518,23.05915747,1562.4,1562.3,1.69117093]
[1673924703838,25.45521572,1562.4,1562.3,1.69117093]
[1673924704547,30.16876912,1562.4,1562.3,1.69117093]
[1673924704744,30.64906912,1562.4,1562.3,1.69117093]
[1673924706465,30.16876912,1562.4,1562.3,1.69117093]
[1673924709151,32.08679865,1562.4,1562.3,1.69117093]
[1673924709667,30.16876912,1562.4,1562.3,1.69117093]
[1673924709884,32.08690976,1562.4,1562.3,1.69117093]
[1673924713343,1.50545807,1562.4,1562.3,1.69117093]
[1673924713665,8.73515272,1562.4,1562.3,1.69117093]
[1673924713889,8.80215272,1562.4,1562.3,1.69117093]
[1673924714088,6.88401208,1562.4,1562.3,1.69117093]
[1673924715129,8.80215272,1562.4,1562.3,1.69117093]
[1673924715371,15.20255272,1562.4,1562.3,1.69117093]
[1673924715564,23.20441075,1562.4,1562.3,1.69117093]
[1673924715777,29.60481075,1562.4,1562.3,1.69117093]
[1673924715986,32.000869,1562.4,1562.3,1.69117093]
[1673924716199,30.08272836,1562.4,1562.3,1.69117093]
[1673924718628,29.14867011,1562.4,1562.3,1.69117093]
[1673924718804,33.25851076,1562.4,1562.3,1.69117093]
[1673924721228,30.38067011,1562.4,1562.3,1.69117093]
[1673924721441,33.25851076,1562.4,1562.3,1.69117093]
[1673924721655,33.73881076,1562.4,1562.3,1.69117093]
[1673924721876,33.73881076,1562.4,1562.3,1.68719068]
[1673924722086,33.25851076,1562.4,1562.3,1.68719068]
[1673924724942,30.86097011,1562.4,1562.3,1.68719068]
[1673924725342,33.73881076,1562.4,1562.3,1.68719068]
[1673924725583,30.86097011,1562.4,1562.3,1.68719068]
[1673924726312,33.73881076,1562.4,1562.3,1.68719068]
[1673924726473,30.86097011,1562.4,1562.3,1.68719068]
[1673924726682,33.73881076,1562.4,1562.3,1.68719068]
[1673924728262,30.86097011,1562.4,1562.3,1.68719068]
[1673924728481,30.38067011,1562.4,1562.3,1.68719068]
[1673924729145,32.77750961,1562.4,1562.3,1.68719068]
[1673924729370,31.54550961,1562.4,1562.3,1.68719068]
[1673924730731,29.09867011,1562.4,1562.3,1.68719068]
[1673924731214,31.49585374,1562.4,1562.3,1.68719068]
[1673924733095,29.09867011,1562.4,1562.3,1.68719068]
[1673924735414,31.97651076,1562.4,1562.3,1.68719068]
[1673924738169,31.49617426,1562.4,1562.3,1.68719068]
[1673924738406,28.45625816,1562.4,1562.3,1.68719068]
[1673924738674,27.22425816,1562.4,1562.3,1.68719068]
[1673924740378,27.22425816,1562.4,1562.1,8.0671]
[1673924740709,27.22425816,1562.4,1562.1,8.0651]
[1673924740710,1.43870904,1562.2,1562.1,8.0651]
[1673924740924,1.43870904,1562.2,1562.1,0.064]
[1673924741080,1.43870904,1562.2,1561.8,30.5672419]
[1673924741421,0.95917929,1562.1,1561.9,7.76186697]